fUSD/lending_fUSD_20260529
["ID","MTS","AMOUNT","RATE_DAILY","PERIOD"]
[423359107,1780066949000,-351.71,0.00038875,30]
[423359102,1780066949000,-329.81,0.00038875,30]
[423359103,1780066949000,-179.38,0.00038875,30]
[423359104,1780066949000,-199.72,0.00038875,30]
[423359109,1780066949000,-168.93,0.00038875,30]
[423359105,1780066949000,-826.31,0.00038875,30]
[423359111,1780066949000,-150.0,0.00038875,30]
[423359113,1780066949000,-1704.52,0.00038876,30]
[423359112,1780066949000,-150.0,0.00038875,30]
[423359115,1780066949000,-2000.0,0.00038876,30]
[423359114,1780066949000,-199.46,0.00038876,30]
[423359116,1780066949000,-2000.0,0.00038876,30]
[423359117,1780066949000,-1613.95,0.00038876,30]
[423359119,1780066949000,-2455.47523156,0.0003888,30]
[423359120,1780066949000,-7194.59517688,0.0003888,60]
[423359118,1780066949000,-300.0,0.00038876,30]
[423359121,1780066949000,-258.76,0.00038885,30]
[423359122,1780066949000,-463.46250728,0.00038886,90]
[423359134,1780066950000,-300.0,0.00038904,120]
[423359135,1780066950000,-300.0,0.00038904,120]
[423359136,1780066950000,-300.0,0.00038904,120]
[423359132,1780066950000,-300.0,0.00038904,120]
[423359130,1780066950000,-300.0,0.00038904,120]
[423359131,1780066950000,-300.0,0.00038904,120]
[423359124,1780066950000,-11000.0,0.000389,30]
[423359127,1780066950000,-1000.0,0.000389,45]
[423359128,1780066950000,-300.0,0.00038904,120]
[423359126,1780066950000,-4314.8,0.000389,120]
[423359138,1780066950000,-300.0,0.00038904,120]
[423359125,1780066950000,-414.83391661,0.000389,30]
[423359123,1780066950000,-368.30440275,0.00038889,30]
[423359129,1780066950000,-300.0,0.00038904,120]
[423359137,1780066950000,-300.0,0.00038904,120]
[423359133,1780066950000,-300.0,0.00038904,120]
[423359141,1780066950000,-300.0,0.00038904,120]
[423359154,1780066950000,-300.0,0.00038904,120]
[423359150,1780066950000,-300.0,0.00038904,120]
[423359151,1780066950000,-300.0,0.00038904,120]
[423359152,1780066950000,-300.0,0.00038904,120]
[423359148,1780066950000,-300.0,0.00038904,120]
[423359149,1780066950000,-300.0,0.00038904,120]
[423359147,1780066950000,-300.0,0.00038904,120]
[423359139,1780066950000,-300.0,0.00038904,120]
[423359146,1780066950000,-300.0,0.00038904,120]
[423359145,1780066950000,-300.0,0.00038904,120]
[423359153,1780066950000,-300.0,0.00038904,120]
[423359143,1780066950000,-300.0,0.00038904,120]
[423359142,1780066950000,-300.0,0.00038904,120]
[423359140,1780066950000,-300.0,0.00038904,120]
[423359144,1780066950000,-300.0,0.00038904,120]
[423359168,1780066951000,-300.0,0.00038904,120]
[423359167,1780066951000,-300.0,0.00038904,120]
[423359166,1780066951000,-300.0,0.00038904,120]
[423359165,1780066951000,-300.0,0.00038904,120]
[423359163,1780066951000,-300.0,0.00038904,120]
[423359164,1780066951000,-300.0,0.00038904,120]
[423359159,1780066951000,-300.0,0.00038904,120]
[423359161,1780066951000,-300.0,0.00038904,120]
[423359162,1780066951000,-300.0,0.00038904,120]
[423359158,1780066951000,-300.0,0.00038904,120]
[423359156,1780066951000,-300.0,0.00038904,120]
[423359157,1780066951000,-300.0,0.00038904,120]
[423359169,1780066951000,-300.0,0.00038904,120]
[423359160,1780066951000,-300.0,0.00038904,120]
[423359155,1780066951000,-300.0,0.00038904,120]
[423359171,1780066951000,-300.0,0.00038904,120]
[423359170,1780066951000,-300.0,0.00038904,120]
[423359172,1780066951000,-300.0,0.00038904,120]
[423359186,1780066951000,-300.0,0.00038904,120]
[423359185,1780066951000,-300.0,0.00038904,120]
[423359183,1780066951000,-300.0,0.00038904,120]
[423359184,1780066951000,-300.0,0.00038904,120]
[423359180,1780066951000,-300.0,0.00038904,120]
[423359182,1780066951000,-300.0,0.00038904,120]
[423359181,1780066951000,-300.0,0.00038904,120]
[423359177,1780066951000,-300.0,0.00038904,120]
[423359176,1780066951000,-300.0,0.00038904,120]
[423359178,1780066951000,-300.0,0.00038904,120]
[423359175,1780066951000,-300.0,0.00038904,120]
[423359173,1780066951000,-300.0,0.00038904,120]
[423359174,1780066951000,-300.0,0.00038904,120]
[423359179,1780066951000,-300.0,0.00038904,120]
[423359195,1780066952000,-300.0,0.00038904,120]
[423359199,1780066952000,-300.0,0.00038904,120]
[423359200,1780066952000,-300.0,0.00038904,120]
[423359198,1780066952000,-300.0,0.00038904,120]
[423359196,1780066952000,-300.0,0.00038904,120]
[423359193,1780066952000,-300.0,0.00038904,120]
[423359201,1780066952000,-300.0,0.00038904,120]
[423359192,1780066952000,-300.0,0.00038904,120]
[423359190,1780066952000,-300.0,0.00038904,120]
[423359191,1780066952000,-300.0,0.00038904,120]
[423359189,1780066952000,-300.0,0.00038904,120]
[423359187,1780066952000,-300.0,0.00038904,120]
[423359188,1780066952000,-300.0,0.00038904,120]
[423359194,1780066952000,-300.0,0.00038904,120]
[423359202,1780066952000,-300.0,0.00038904,120]
[423359197,1780066952000,-300.0,0.00038904,120]
[423359204,1780066952000,-300.0,0.00038904,120]
[423359216,1780066952000,-338.34022495,0.00038917,30]
[423359217,1780066952000,-187.96679164,0.00038917,120]
[423359215,1780066952000,-443.524408,0.00038904,120]
[423359214,1780066952000,-300.0,0.00038904,120]
[423359213,1780066952000,-300.0,0.00038904,120]
[423359212,1780066952000,-300.0,0.00038904,120]
[423359211,1780066952000,-300.0,0.00038904,120]
[423359203,1780066952000,-300.0,0.00038904,120]
[423359210,1780066952000,-300.0,0.00038904,120]
[423359218,1780066952000,-158.26229879,0.00038917,30]
[423359208,1780066952000,-300.0,0.00038904,120]
[423359207,1780066952000,-300.0,0.00038904,120]
[423359205,1780066952000,-300.0,0.00038904,120]
[423359206,1780066952000,-300.0,0.00038904,120]
[423359209,1780066952000,-300.0,0.00038904,120]
[423359232,1780066953000,-2322.42739181,0.00039,120]
[423359233,1780066953000,-659.44678278,0.00039,120]
[423359231,1780066953000,-228.77760116,0.00039,120]
[423359230,1780066953000,-722.01049085,0.00039,120]
[423359229,1780066953000,-421.93,0.00039,120]
[423359228,1780066953000,-2000.0,0.00039,75]
[423359225,1780066953000,-1067.64786372,0.0003898,120]
[423359226,1780066953000,-185.40099379,0.0003899,120]
[423359227,1780066953000,-433.00990001,0.0003899,30]
[423359223,1780066953000,-731.59515361,0.00038952,120]
[423359221,1780066953000,-150.0,0.00038934,120]
[423359222,1780066953000,-731.59515361,0.00038952,120]
[423359220,1780066953000,-150.0,0.00038932,120]
[423359235,1780066953000,-970.26463059,0.00039,30]
[423359224,1780066953000,-150.0,0.00038955,120]
[423359219,1780066953000,-2763.4,0.0003892,116]
[423359234,1780066953000,-257.02628943,0.00039,120]
[423359236,1780066953000,-1003.0,0.00039,120]
[423359237,1780066953000,-4103.61114517,0.00039,120]
[423359252,1780066953000,-2000.0,0.00039,30]
[423359251,1780066953000,-10449.0,0.00039,30]
[423359250,1780066953000,-2000.0,0.00039,120]
[423359248,1780066953000,-2000.0,0.00039,120]
[423359247,1780066953000,-2000.0,0.00039,120]
[423359246,1780066953000,-2500.0,0.00039,40]
[423359249,1780066953000,-2000.0,0.00039,120]
[423359243,1780066953000,-180.0,0.00039,120]
[423359244,1780066953000,-2500.0,0.00039,30]
[423359241,1780066953000,-1487.47637992,0.00039,120]
[423359242,1780066953000,-500.0,0.00039,120]
[423359240,1780066953000,-150.0,0.00039,120]
[423359238,1780066953000,-1210.08894244,0.00039,90]
[423359239,1780066953000,-1000.0,0.00039,120]
[423359245,1780066953000,-635.73854594,0.00039,60]
[423359263,1780066954000,-1000.0,0.00039,120]
[423359267,1780066954000,-1000.0,0.00039,120]
[423359266,1780066954000,-1000.0,0.00039,120]
[423359265,1780066954000,-1000.0,0.00039,120]
[423359264,1780066954000,-1000.0,0.00039,120]
[423359262,1780066954000,-1000.0,0.00039,120]
[423359259,1780066954000,-1000.0,0.00039,120]
[423359253,1780066954000,-362.61,0.00039,120]
[423359260,1780066954000,-1000.0,0.00039,120]
[423359258,1780066954000,-1000.0,0.00039,120]
[423359257,1780066954000,-1000.0,0.00039,120]
[423359255,1780066954000,-1000.0,0.00039,30]
[423359256,1780066954000,-1000.0,0.00039,120]
[423359254,1780066954000,-1000.0,0.00039,30]
[423359261,1780066954000,-1000.0,0.00039,120]
[423359268,1780066954000,-1000.0,0.00039,120]
[423359271,1780066954000,-1774.32855457,0.00039,60]
[423359269,1780066954000,-45000.0,0.00039,90]
[423359285,1780066954000,-1000.0,0.00039,30]
[423359284,1780066954000,-2420.0,0.00039,120]
[423359282,1780066954000,-642.0,0.00039,30]
[423359283,1780066954000,-171315.65,0.00039,60]
[423359281,1780066954000,-2000.0,0.00039,120]
[423359279,1780066954000,-200.0,0.00039,30]
[423359280,1780066954000,-336.0,0.00039,30]
[423359286,1780066954000,-300.132839,0.00039,30]
[423359276,1780066954000,-210.0,0.00039,30]
[423359278,1780066954000,-1626.0,0.00039,30]
[423359274,1780066954000,-418.0,0.00039,30]
[423359273,1780066954000,-2500.0,0.00039,30]
[423359270,1780066954000,-3969.55193647,0.00039,120]
[423359275,1780066954000,-922.0,0.00039,30]
[423359277,1780066954000,-280.0,0.00039,30]
[423359272,1780066954000,-6790.3110407,0.00039,60]
[423359298,1780066955000,-153.330065,0.00039,30]
[423359299,1780066955000,-153.330065,0.00039,30]
[423359295,1780066955000,-157.583012,0.00039,30]
[423359297,1780066955000,-151.0,0.00039,30]
[423359296,1780066955000,-153.330065,0.00039,30]
[423359292,1780066955000,-157.583017,0.00039,30]
[423359294,1780066955000,-157.583017,0.00039,30]
[423359291,1780066955000,-151.0,0.00039,30]
[423359290,1780066955000,-151.0,0.00039,30]
[423359288,1780066955000,-300.132839,0.00039,30]
[423359287,1780066955000,-300.132839,0.00039,30]
[423359300,1780066955000,-153.33006,0.00039,30]
[423359293,1780066955000,-157.583017,0.00039,30]
[423359289,1780066955000,-300.132845,0.00039,30]
[423359301,1780066955000,-151.0,0.00039,30]
[423359302,1780066955000,-151.0,0.00039,30]
[423359304,1780066955000,-220.594891,0.00039,30]
[423359315,1780066955000,-248.160131,0.00039,30]
[423359314,1780066955000,-248.160131,0.00039,30]
[423359313,1780066955000,-195.627687,0.00039,30]
[423359310,1780066955000,-220.594887,0.00039,30]
[423359311,1780066955000,-311.25,0.00039,30]
[423359312,1780066955000,-248.160131,0.00039,30]
[423359308,1780066955000,-220.594891,0.00039,30]
[423359307,1780066955000,-311.25,0.00039,30]
[423359306,1780066955000,-220.594891,0.00039,30]
[423359305,1780066955000,-311.25,0.00039,30]
[423359303,1780066955000,-151.0,0.00039,30]
[423359309,1780066955000,-311.25,0.00039,30]
[423359323,1780066956000,-170.289636,0.00039,30]
[423359330,1780066956000,-238.360573,0.00039,30]
[423359329,1780066956000,-238.360582,0.00039,30]
[423359327,1780066956000,-238.360582,0.00039,30]
[423359325,1780066956000,-170.289636,0.00039,30]
[423359326,1780066956000,-202.217367,0.00039,30]
[423359322,1780066956000,-170.289636,0.00039,30]
[423359328,1780066956000,-238.360582,0.00039,30]
[423359321,1780066956000,-314.0,0.00039,30]
[423359320,1780066956000,-432.486123,0.00039,30]
[423359318,1780066956000,-432.486118,0.00039,30]
[423359319,1780066956000,-432.486118,0.00039,30]
[423359317,1780066956000,-432.486118,0.00039,30]
[423359316,1780066956000,-248.160127,0.00039,30]
[423359324,1780066956000,-170.289636,0.00039,30]
[423359333,1780066956000,-259.651293,0.00039,30]
[423359347,1780066956000,-264.861318,0.00039,30]
[423359331,1780066956000,-259.651293,0.00039,30]
[423359348,1780066956000,-179.932507,0.00039,30]
[423359345,1780066956000,-179.932507,0.00039,30]
[423359346,1780066956000,-451.529885,0.00039,30]
[423359343,1780066956000,-264.861318,0.00039,30]
[423359344,1780066956000,-344.668958,0.00039,30]
[423359342,1780066956000,-164.981842,0.00039,30]
[423359341,1780066956000,-344.668954,0.00039,30]
[423359334,1780066956000,-259.65129,0.00039,30]
[423359340,1780066956000,-164.981848,0.00039,30]
[423359338,1780066956000,-344.668954,0.00039,30]
[423359335,1780066956000,-164.981848,0.00039,30]
[423359337,1780066956000,-164.981848,0.00039,30]
[423359336,1780066956000,-344.668954,0.00039,30]
[423359332,1780066956000,-259.651293,0.00039,30]
[423359339,1780066956000,-264.861318,0.00039,30]
[423359362,1780066957000,-439.642682,0.00039,30]
[423359363,1780066957000,-151.0,0.00039,30]
[423359361,1780066957000,-439.642687,0.00039,30]
[423359360,1780066957000,-151.0,0.00039,30]
[423359359,1780066957000,-439.642687,0.00039,30]
[423359356,1780066957000,-151.0,0.00039,30]
[423359357,1780066957000,-439.642687,0.00039,30]
[423359353,1780066957000,-179.932501,0.00039,30]
[423359355,1780066957000,-151.0,0.00039,30]
[423359354,1780066957000,-451.529882,0.00039,30]
[423359351,1780066957000,-179.932507,0.00039,30]
[423359349,1780066957000,-451.529885,0.00039,30]
[423359350,1780066957000,-264.861322,0.00039,30]
[423359364,1780066957000,-151.0,0.00039,30]
[423359358,1780066957000,-151.0,0.00039,30]
[423359368,1780066957000,-770.56024,0.00039,30]
[423359352,1780066957000,-451.529885,0.00039,30]
[423359365,1780066957000,-151.0,0.00039,30]
[423359381,1780066957000,-350.919063,0.00039,30]
[423359380,1780066957000,-226.035572,0.00039,30]
[423359383,1780066957000,-226.035572,0.00039,30]
[423359378,1780066957000,-350.919063,0.00039,30]
[423359379,1780066957000,-159.48045,0.00039,30]
[423359377,1780066957000,-159.480452,0.00039,30]
[423359376,1780066957000,-159.480452,0.00039,30]
[423359382,1780066957000,-151.0,0.00039,30]
[423359373,1780066957000,-159.480452,0.00039,30]
[423359374,1780066957000,-199.216866,0.00039,30]
[423359367,1780066957000,-199.216874,0.00039,30]
[423359369,1780066957000,-199.216874,0.00039,30]
[423359366,1780066957000,-151.0,0.00039,30]
[423359371,1780066957000,-199.216874,0.00039,30]
[423359372,1780066957000,-770.56024,0.00039,30]
[423359375,1780066957000,-770.560236,0.00039,30]
[423359370,1780066957000,-770.56024,0.00039,30]
[423359395,1780066958000,-1045.227942,0.00039,30]
[423359396,1780066958000,-547.459387,0.00039,30]
[423359393,1780066958000,-547.459387,0.00039,30]
[423359392,1780066958000,-1045.227942,0.00039,30]
[423359391,1780066958000,-547.459387,0.00039,30]
[423359389,1780066958000,-226.035582,0.00039,30]
[423359387,1780066958000,-226.035572,0.00039,30]
[423359388,1780066958000,-151.0,0.00039,30]
[423359385,1780066958000,-151.0,0.00039,30]
[423359384,1780066958000,-224.71001,0.00039,30]
[423359394,1780066958000,-350.919054,0.00039,30]
[423359390,1780066958000,-350.919063,0.00039,30]
[423359386,1780066958000,-151.0,0.00039,30]
[423359399,1780066958000,-547.459381,0.00039,30]
[423359397,1780066958000,-1045.227942,0.00039,30]
[423359398,1780066958000,-670.205719,0.00039,30]
[423359411,1780066958000,-262.715135,0.00039,30]
[423359410,1780066958000,-334.864124,0.00039,30]
[423359409,1780066958000,-266.973748,0.00039,30]
[423359406,1780066958000,-266.973748,0.00039,30]
[423359405,1780066958000,-670.205726,0.00039,30]
[423359408,1780066958000,-262.715135,0.00039,30]
[423359403,1780066958000,-266.973748,0.00039,30]
[423359402,1780066958000,-670.205719,0.00039,30]
[423359401,1780066958000,-670.205719,0.00039,30]
[423359404,1780066958000,-262.715135,0.00039,30]
[423359400,1780066958000,-1045.227939,0.00039,30]
[423359407,1780066958000,-187.442691,0.00039,30]
[423359418,1780066959000,-334.864114,0.00039,30]
[423359425,1780066959000,-949.549007,0.00039,30]
[423359422,1780066959000,-1494.750251,0.00039,30]
[423359423,1780066959000,-289.12844,0.00039,30]
[423359424,1780066959000,-1494.750251,0.00039,30]
[423359421,1780066959000,-692.670953,0.00039,30]
[423359413,1780066959000,-334.864124,0.00039,30]
[423359419,1780066959000,-692.670953,0.00039,30]
[423359417,1780066959000,-334.864124,0.00039,30]
[423359415,1780066959000,-266.973753,0.00039,30]
[423359427,1780066959000,-289.12844,0.00039,30]
[423359414,1780066959000,-262.71513,0.00039,30]
[423359412,1780066959000,-151.0,0.00039,30]
[423359420,1780066959000,-692.670953,0.00039,30]
[423359426,1780066959000,-692.670957,0.00039,30]
[423359416,1780066959000,-151.0,0.00039,30]
[423359431,1780066959000,-289.12844,0.00039,30]
[423359444,1780066959000,-3657.79089,0.00039,30]
[423359443,1780066959000,-786.979367,0.00039,30]
[423359442,1780066959000,-187.678958,0.00039,30]
[423359441,1780066959000,-151.0,0.00039,30]
[423359440,1780066959000,-366.239983,0.00039,30]
[423359438,1780066959000,-366.239991,0.00039,30]
[423359439,1780066959000,-786.979367,0.00039,30]
[423359428,1780066959000,-1494.750251,0.00039,30]
[423359437,1780066959000,-949.549015,0.00039,30]
[423359436,1780066959000,-786.979367,0.00039,30]
[423359432,1780066959000,-1494.750252,0.00039,30]
[423359433,1780066959000,-949.549007,0.00039,30]
[423359434,1780066959000,-366.239991,0.00039,30]
[423359429,1780066959000,-366.239991,0.00039,30]
[423359430,1780066959000,-949.549007,0.00039,30]
[423359435,1780066959000,-289.128446,0.00039,30]
[423359459,1780066960000,-187.67896,0.00039,30]
[423359457,1780066960000,-3657.79089,0.00039,30]
[423359456,1780066960000,-470.432629,0.00039,30]
[423359455,1780066960000,-501.610885,0.00039,30]
[423359454,1780066960000,-187.678958,0.00039,30]
[423359452,1780066960000,-151.0,0.00039,30]
[423359453,1780066960000,-306.85725,0.00039,30]
[423359448,1780066960000,-470.432629,0.00039,30]
[423359449,1780066960000,-786.979359,0.00039,30]
[423359450,1780066960000,-3657.79089,0.00039,30]
[423359446,1780066960000,-151.0,0.00039,30]
[423359447,1780066960000,-187.678958,0.00039,30]
[423359445,1780066960000,-306.85725,0.00039,30]
[423359458,1780066960000,-348.65797,0.00039,30]
[423359451,1780066960000,-348.65797,0.00039,30]
[423359460,1780066960000,-306.85725,0.00039,30]
[423359462,1780066960000,-501.610885,0.00039,30]
[423359475,1780066960000,-286.676657,0.00039,30]
[423359477,1780066960000,-305.060816,0.00039,30]
[423359461,1780066960000,-470.432629,0.00039,30]
[423359476,1780066960000,-498.284567,0.00039,30]
[423359472,1780066960000,-501.610893,0.00039,30]
[423359474,1780066960000,-825.963004,0.00039,30]
[423359470,1780066960000,-224.214982,0.00039,30]
[423359469,1780066960000,-348.65797,0.00039,30]
[423359473,1780066960000,-498.284567,0.00039,30]
[423359468,1780066960000,-470.432629,0.00039,30]
[423359467,1780066960000,-501.610885,0.00039,30]
[423359465,1780066960000,-348.65797,0.00039,30]
[423359466,1780066960000,-306.85725,0.00039,30]
[423359464,1780066960000,-3657.790886,0.00039,30]
[423359463,1780066960000,-224.214982,0.00039,30]
[423359471,1780066960000,-286.676657,0.00039,30]
[423359485,1780066961000,-224.214991,0.00039,30]
[423359490,1780066961000,-305.060816,0.00039,30]
[423359488,1780066961000,-462.54556,0.00039,30]
[423359487,1780066961000,-286.676657,0.00039,30]
[423359486,1780066961000,-825.963004,0.00039,30]
[423359489,1780066961000,-498.284567,0.00039,30]
[423359482,1780066961000,-498.284567,0.00039,30]
[423359483,1780066961000,-305.060816,0.00039,30]
[423359480,1780066961000,-825.963004,0.00039,30]
[423359481,1780066961000,-286.676657,0.00039,30]
[423359479,1780066961000,-224.214982,0.00039,30]
[423359478,1780066961000,-524.143732,0.00039,30]
[423359484,1780066961000,-524.143732,0.00039,30]
[423359491,1780066961000,-524.143732,0.00039,30]
[423359498,1780066961000,-366.210319,0.00039,30]
[423359492,1780066961000,-825.962998,0.00039,30]
[423359493,1780066961000,-462.54556,0.00039,30]
[423359507,1780066961000,-179.484068,0.00039,30]
[423359508,1780066961000,-366.210319,0.00039,30]
[423359506,1780066961000,-203.823393,0.00039,30]
[423359505,1780066961000,-253.467265,0.00039,30]
[423359501,1780066961000,-462.54556,0.00039,30]
[423359504,1780066961000,-151.0,0.00039,30]
[423359502,1780066961000,-203.823393,0.00039,30]
[423359499,1780066961000,-203.823393,0.00039,30]
[423359500,1780066961000,-253.467265,0.00039,30]
[423359495,1780066961000,-305.060816,0.00039,30]
[423359497,1780066961000,-462.54556,0.00039,30]
[423359494,1780066961000,-524.143732,0.00039,30]
[423359503,1780066961000,-366.210319,0.00039,30]
[423359518,1780066962000,-1249.262439,0.00039,30]
[423359520,1780066962000,-1249.262439,0.00039,30]
[423359521,1780066962000,-297.727183,0.00039,30]
[423359522,1780066962000,-297.727183,0.00039,30]
[423359519,1780066962000,-179.484068,0.00039,30]
[423359516,1780066962000,-151.0,0.00039,30]
[423359511,1780066962000,-151.0,0.00039,30]
[423359513,1780066962000,-179.484068,0.00039,30]
[423359515,1780066962000,-253.467265,0.00039,30]
[423359514,1780066962000,-366.210319,0.00039,30]
[423359512,1780066962000,-203.823397,0.00039,30]
[423359510,1780066962000,-253.467265,0.00039,30]
[423359523,1780066962000,-367.864369,0.00039,30]
[423359509,1780066962000,-1249.262439,0.00039,30]
[423359517,1780066962000,-179.484068,0.00039,30]
[423359524,1780066962000,-297.727183,0.00039,30]
[423359529,1780066962000,-367.864369,0.00039,30]
[423359527,1780066962000,-297.727183,0.00039,30]
[423359542,1780066962000,-780.078911,0.00039,30]
[423359540,1780066962000,-257.30357,0.00039,30]
[423359541,1780066962000,-340.561409,0.00039,30]
[423359537,1780066962000,-1249.262436,0.00039,30]
[423359525,1780066962000,-367.864369,0.00039,30]
[423359538,1780066962000,-340.561409,0.00039,30]
[423359536,1780066962000,-257.30357,0.00039,30]
[423359539,1780066962000,-158.465534,0.00039,30]
[423359533,1780066962000,-340.561409,0.00039,30]
[423359534,1780066962000,-367.864369,0.00039,30]
[423359532,1780066962000,-780.078911,0.00039,30]
[423359530,1780066962000,-158.465534,0.00039,30]
[423359531,1780066962000,-257.30357,0.00039,30]
[423359526,1780066962000,-780.078911,0.00039,30]
[423359528,1780066962000,-340.561409,0.00039,30]
[423359535,1780066962000,-158.465534,0.00039,30]
[423359555,1780066963000,-1046.543546,0.00039,30]
[423359554,1780066963000,-1046.543546,0.00039,30]
[423359551,1780066963000,-1249.944897,0.00039,30]
[423359553,1780066963000,-1249.944897,0.00039,30]
[423359552,1780066963000,-1249.944897,0.00039,30]
[423359550,1780066963000,-1773.462,0.00039,30]
[423359548,1780066963000,-1773.462003,0.00039,30]
[423359570,1780066963000,-5000.0,0.00039076,120]
[423359547,1780066963000,-1773.462003,0.00039,30]
[423359546,1780066963000,-1773.462003,0.00039,30]
[423359545,1780066963000,-780.078911,0.00039,30]
[423359544,1780066963000,-158.465534,0.00039,30]
[423359543,1780066963000,-257.30357,0.00039,30]
[423359556,1780066963000,-1046.543546,0.00039,30]
[423359549,1780066963000,-1249.944897,0.00039,30]
[423359558,1780066963000,-151.0,0.00039,30]
[423359574,1780066963000,-5000.0,0.00039076,120]
[423359559,1780066963000,-165.412733,0.00039,30]
[423359575,1780066963000,-5000.0,0.00039076,120]
[423359573,1780066963000,-5000.0,0.00039076,120]
[423359571,1780066963000,-5000.0,0.00039076,120]
[423359572,1780066963000,-5000.0,0.00039076,120]
[423359569,1780066963000,-5000.0,0.00039076,120]
[423359567,1780066963000,-171.08,0.00039066,120]
[423359568,1780066963000,-5000.0,0.00039076,120]
[423359557,1780066963000,-1046.543544,0.00039,30]
[423359566,1780066963000,-150.0,0.00039054,120]
[423359564,1780066963000,-500.0,0.00039041,120]
[423359561,1780066963000,-2507.0,0.00039024,120]
[423359563,1780066963000,-250.0,0.00039041,120]
[423359562,1780066963000,-500.0,0.0003904,120]
[423359560,1780066963000,-158.0,0.00039,30]
[423359565,1780066963000,-500.0,0.00039041,120]
[423359590,1780066964000,-2386.64,0.000391,120]
[423359589,1780066964000,-2386.641,0.000391,120]
[423359586,1780066964000,-23043.3771,0.000391,120]
[423359585,1780066964000,-1000.0,0.00039095,120]
[423359584,1780066964000,-1326.72313124,0.0003909,120]
[423359582,1780066964000,-5000.0,0.0003909,120]
[423359577,1780066964000,-2000.0,0.00039077,120]
[423359583,1780066964000,-5000.0,0.0003909,120]
[423359580,1780066964000,-5000.0,0.0003909,120]
[423359587,1780066964000,-786.6795,0.000391,120]
[423359579,1780066964000,-5000.0,0.0003909,120]
[423359578,1780066964000,-5000.0,0.0003909,120]
[423359576,1780066964000,-1313.90903176,0.00039076,120]
[423359581,1780066964000,-5000.0,0.0003909,120]
[423359592,1780066964000,-2100.447,0.000391,60]
[423359588,1780066964000,-2386.641,0.000391,120]
[423359593,1780066964000,-2100.44,0.000391,60]
[423359606,1780066964000,-1832.27,0.000391,120]
[423359591,1780066964000,-2100.447,0.000391,60]
[423359605,1780066964000,-369.98,0.000391,120]
[423359604,1780066964000,-2738.77,0.000391,120]
[423359603,1780066964000,-1334.32,0.000391,120]
[423359602,1780066964000,-359.8188,0.000391,60]
[423359601,1780066964000,-153.0,0.000391,120]
[423359607,1780066964000,-2064.98,0.000391,120]
[423359600,1780066964000,-425.3017,0.000391,60]
[423359598,1780066964000,-2051.574,0.000391,60]
[423359597,1780066964000,-2051.574,0.000391,60]
[423359595,1780066964000,-2765.564,0.000391,120]
[423359596,1780066964000,-2765.56,0.000391,120]